fUST/lending_fUST_20250718
["ID","MTS","AMOUNT","RATE_DAILY","PERIOD"]
[372958917,1752822641986,-728.1,0.00018352,2]
[372958918,1752822641996,-460.0,0.00018352,2]
[372958919,1752822642007,-460.0,0.00018353,2]
[372958920,1752822642017,-476.57,0.00018353,2]
[372958921,1752822642027,-460.0,0.00018353,2]
[372958922,1752822642038,-460.0,0.00018353,2]
[372958923,1752822642048,-1817.55,0.00018353,2]
[372958924,1752822642059,-942.03,0.00018353,2]
[372958925,1752822642069,-460.0,0.00018353,2]
[372958926,1752822642080,-460.0,0.00018353,2]
[372958927,1752822642093,-696.38814388,0.00018452,2]
[372958928,1752822642104,-160.0,0.00018584,2]
[372958929,1752822642114,-839.30593155,0.00018584,2]
[372958930,1752822642296,-476.25663856,0.00018584,2]
[372958931,1752822642306,-12610.43989422,0.00018584,2]
[372958932,1752822642320,-214.4881157,0.00018584,2]
[372958933,1752822642330,-525.75194068,0.00018584,2]
[372958934,1752822642341,-6212.05815728,0.0001862,2]
[372958935,1752822642351,-978.12,0.00018626,2]
[372958936,1752822642361,-610.95,0.00018626,2]
[372958937,1752822642371,-460.0,0.00018626,2]
[372958938,1752822642380,-460.0,0.00018626,2]
[372958939,1752822642390,-460.0,0.00018626,2]
[372958940,1752822642400,-460.0,0.00018626,2]
[372958941,1752822642409,-728.1,0.00018626,2]
[372958942,1752822642419,-460.0,0.00018626,2]
[372958943,1752822642429,-460.0,0.00018627,2]
[372958944,1752822642439,-476.57,0.00018627,2]
[372958945,1752822642449,-460.0,0.00018627,2]
[372958946,1752822642459,-460.0,0.00018627,2]
[372958947,1752822642469,-1817.55,0.00018627,2]
[372958948,1752822642478,-942.03,0.00018627,2]
[372958949,1752822642488,-460.0,0.00018627,2]
[372958950,1752822642498,-460.0,0.00018627,2]
[372958951,1752822642507,-696.38814388,0.00018728,2]
[372958952,1752822642518,-6212.05815728,0.00018762,2]
[372958953,1752822642528,-1371.30963216,0.000189,2]
[372958954,1752822642537,-978.12,0.000189,2]
[372958955,1752822642553,-610.95,0.000189,2]
[372958956,1752822642563,-460.0,0.000189,2]
[372958957,1752822642573,-460.0,0.000189,2]
[372958958,1752822642582,-460.0,0.000189,2]
[372958959,1752822642594,-460.0,0.000189,2]
[372958960,1752822642604,-728.1,0.000189,2]
[372958961,1752822642617,-460.0,0.000189,2]
[372958962,1752822642627,-460.0,0.00018901,2]
[372958963,1752822642637,-476.57,0.00018901,2]
[372958964,1752822642647,-460.0,0.00018901,2]
[372958965,1752822642656,-460.0,0.00018901,2]
[372958966,1752822642665,-1817.55,0.00018901,2]
[372958967,1752822642675,-942.03,0.00018901,2]
[372958968,1752822642685,-438.12,0.00018901,2]
[372958969,1752822642694,-460.0,0.00018901,2]
[372958970,1752822642704,-6212.05815728,0.00018932,2]
[372958971,1752822642715,-696.38814388,0.00019003,2]
[372958972,1752822642725,-316.67051047,0.00019113,2]
[372958973,1752822642735,-978.12,0.00019174,2]
[372958974,1752822642744,-610.95,0.00019174,2]
[372958975,1752822642754,-460.0,0.00019174,2]
[372958976,1752822642764,-460.0,0.00019174,2]
[372958977,1752822642773,-460.0,0.00019174,2]
[372958978,1752822642783,-460.0,0.00019174,2]
[372958979,1752822642793,-728.1,0.00019174,2]
[372958980,1752822642803,-460.0,0.00019174,2]
[372958981,1752822642813,-460.0,0.00019175,2]
[372958982,1752822642823,-476.57,0.00019175,2]
[372958983,1752822642832,-460.0,0.00019175,2]
[372958984,1752822642844,-460.0,0.00019175,2]
[372958985,1752822642854,-1817.55,0.00019175,2]
[372958987,1752822642863,-942.03,0.00019175,2]
[372958988,1752822642873,-460.0,0.00019175,2]
[372958991,1752822642883,-175.807953,0.00019178,2]
[372958992,1752822642892,-200.0,0.00019178,3]
[372958994,1752822642902,-6212.05815728,0.0001922,2]
[372958995,1752822642911,-696.38814388,0.00019279,2]
[372958996,1752822642921,-978.12,0.00019448,2]
[372958997,1752822642931,-610.95,0.00019448,2]
[372958998,1752822642940,-460.0,0.00019448,2]
[372959000,1752822642950,-460.0,0.00019448,2]
[372959001,1752822642960,-460.0,0.00019448,2]
[372959002,1752822642969,-460.0,0.00019448,2]
[372959003,1752822642979,-728.1,0.00019448,2]
[372959004,1752822642988,-460.0,0.00019448,2]
[372959005,1752822642998,-460.0,0.00019449,2]
[372959006,1752822643008,-476.57,0.00019449,2]
[372959007,1752822643017,-460.0,0.00019449,2]
[372959008,1752822643027,-460.0,0.00019449,2]
[372959009,1752822643037,-1817.55,0.00019449,2]
[372959010,1752822643046,-942.03,0.00019449,2]
[372959012,1752822643056,-460.0,0.00019449,2]
[372959013,1752822643066,-696.38814388,0.00019555,2]
[372959014,1752822643076,-6212.05815728,0.00019621,2]
[372959015,1752822643085,-978.12,0.00019722,2]
[372959016,1752822643097,-610.95,0.00019722,2]
[372959017,1752822643106,-460.0,0.00019722,2]
[372959018,1752822643116,-460.0,0.00019722,2]
[372959019,1752822643126,-438.03,0.00019722,2]
[372959020,1752822643135,-460.0,0.00019722,2]
[372959021,1752822643145,-728.1,0.00019722,2]
[372959022,1752822643156,-460.0,0.00019722,2]
[372959023,1752822643167,-460.0,0.00019723,2]
[372959024,1752822643178,-476.57,0.00019723,2]
[372959025,1752822643189,-460.0,0.00019723,2]
[372959026,1752822643200,-460.0,0.00019723,2]
[372959028,1752822643217,-1817.55,0.00019723,2]
[372959030,1752822643227,-942.03,0.00019723,2]
[372959032,1752822643237,-460.0,0.00019723,2]
[372959034,1752822643247,-696.38814388,0.00019831,2]
[372959035,1752822643257,-6212.05815728,0.00019964,2]
[372959036,1752822643267,-978.12,0.00019996,2]
[372959037,1752822643277,-610.95,0.00019996,2]
[372959038,1752822643286,-351.32,0.00019996,2]
[372959039,1752822643298,-460.0,0.00019996,2]
[372959040,1752822643308,-460.0,0.00019996,2]
[372959041,1752822643317,-728.1,0.00019996,2]
[372959042,1752822643327,-316.76524216,0.00019996,2]
[372959043,1752822643337,-573.47,0.00019997,2]
[372959044,1752822643348,-476.57,0.00019997,2]
[372959045,1752822643358,-460.0,0.00019997,2]
[372959046,1752822643368,-251.54,0.00019997,2]
[372959047,1752822643377,-1817.55,0.00019997,2]
[372959048,1752822643387,-942.03,0.00019997,2]
[372959049,1752822643396,-460.0,0.00019997,2]
[372959051,1752822643406,-696.38814388,0.00020107,2]
[372959053,1752822643415,-6212.05815728,0.00020123,2]
[372959055,1752822643425,-292.948228,0.00020187,2]
[372959056,1752822643434,-978.12,0.0002027,2]
[372959058,1752822643444,-610.95,0.0002027,2]
[372959060,1752822643453,-460.0,0.0002027,2]
[372959062,1752822643464,-460.0,0.0002027,2]
[372959063,1752822643473,-728.1,0.0002027,2]
[372959065,1752822643483,-476.57,0.00020271,2]
[372959067,1752822643492,-460.0,0.00020271,2]
[372959069,1752822643502,-1817.55,0.00020271,2]
[372959071,1752822643512,-942.03,0.00020271,2]
[372959073,1752822643522,-460.0,0.00020271,2]
[372959075,1752822643536,-316.67051047,0.00020365,2]
[372959077,1752822643551,-696.38814388,0.00020383,3]
[372959078,1752822643567,-6212.05815728,0.00020412,2]
[372959081,1752822643579,-978.12,0.00020544,2]
[372959084,1752822643589,-610.95,0.00020544,2]
[372959086,1752822643598,-460.0,0.00020544,2]
[372959088,1752822643608,-460.0,0.00020544,2]
[372959090,1752822643617,-728.1,0.00020544,2]
[372959092,1752822643628,-476.57,0.00020545,2]
[372959094,1752822643638,-460.0,0.00020545,2]
[372959096,1752822643648,-1817.55,0.00020545,2]
[372959097,1752822643658,-942.03,0.00020545,2]
[372959099,1752822643669,-460.0,0.00020545,2]
[372959101,1752822643680,-6212.05815728,0.0002065,2]
[372959103,1752822643691,-696.38814388,0.00020659,3]
[372959105,1752822643700,-761.82243171,0.00020719,2]
[372959107,1752822643710,-500.0,0.0002075,2]
[372959109,1752822643719,-978.12,0.00020818,2]
[372959111,1752822643729,-610.95,0.00020818,2]
[372959113,1752822643738,-460.0,0.00020818,2]
[372959115,1752822643748,-460.0,0.00020818,2]
[372959116,1752822643758,-728.1,0.00020818,2]
[372959117,1752822643767,-476.57,0.00020819,2]
[372959118,1752822643777,-460.0,0.00020819,2]
[372959119,1752822643787,-1817.55,0.00020819,2]
[372959120,1752822643796,-942.03,0.00020819,2]
[372959121,1752822643806,-460.0,0.00020819,2]
[372959122,1752822643816,-373.657,0.00020888,2]
[372959123,1752822643825,-6212.05815728,0.00020922,2]
[372959124,1752822643835,-696.38814388,0.00020934,4]
[372959125,1752822643845,-978.12,0.00021092,2]
[372959126,1752822643855,-610.95,0.00021092,2]
[372959127,1752822643864,-460.0,0.00021092,2]
[372959128,1752822643874,-460.0,0.00021092,2]
[372959129,1752822643883,-728.1,0.00021092,2]
[372959130,1752822643893,-476.57,0.00021093,2]
[372959131,1752822643902,-460.0,0.00021093,2]
[372959132,1752822643911,-1817.55,0.00021093,2]
[372959133,1752822643921,-942.03,0.00021093,2]
[372959134,1752822643932,-373.8,0.00021093,2]
[372959135,1752822643943,-500.0,0.00021115,2]
[372959136,1752822643952,-6212.05815728,0.00021167,2]
[372959137,1752822643962,-565.01201888,0.00021179,2]
[372959138,1752822643972,-696.38814388,0.0002121,4]
[372959139,1752822643981,-504.00220653,0.00021257,2]
[372959140,1752822643991,-500.0,0.00021298,2]
[372959141,1752822644000,-978.12,0.00021366,2]
[372959142,1752822644010,-610.95,0.00021366,2]
[372959143,1752822644019,-460.0,0.00021366,2]
[372959144,1752822644029,-460.0,0.00021366,2]
[372959145,1752822644038,-728.1,0.00021366,2]
[372959146,1752822644048,-476.57,0.00021367,2]
[372959147,1752822644057,-460.0,0.00021367,2]
[372959148,1752822644067,-1817.55,0.00021367,2]
[372959149,1752822644076,-942.03,0.00021367,2]
[372959150,1752822644086,-696.38814388,0.00021486,5]
[372959151,1752822644097,-6212.05815728,0.00021528,2]
[372959152,1752822644107,-316.67051047,0.00021618,2]
[372959153,1752822644117,-978.12,0.0002164,2]
[372959154,1752822644128,-610.95,0.0002164,2]
[372959155,1752822644137,-460.0,0.0002164,2]
[372959156,1752822644147,-460.0,0.0002164,2]
[372959157,1752822644156,-728.1,0.0002164,2]
[372959158,1752822644166,-476.57,0.00021641,2]
[372959159,1752822644177,-460.0,0.00021641,2]
[372959160,1752822644188,-1817.55,0.00021641,2]
[372959161,1752822644198,-942.03,0.00021641,2]
[372959162,1752822644210,-501.57148668,0.00021663,2]
[372959163,1752822644221,-696.38814388,0.00021762,5]
[372959164,1752822644231,-6212.05815728,0.00021788,2]
[372959165,1752822644241,-500.0,0.00021868,2]
[372959166,1752822644251,-761.8224317,0.00021883,2]
[372959167,1752822644260,-978.12,0.00021914,2]
[372959168,1752822644270,-610.95,0.00021914,2]
[372959169,1752822644280,-460.0,0.00021914,2]
[372959170,1752822644290,-460.0,0.00021914,2]
[372959171,1752822644300,-728.1,0.00021914,2]
[372959172,1752822644310,-476.57,0.00021915,2]
[372959173,1752822644320,-460.0,0.00021915,2]
[372959174,1752822644330,-1817.55,0.00021915,2]
[372959175,1752822644340,-942.03,0.00021915,2]
[372959176,1752822644352,-175.0,0.00021918,6]
[372959177,1752822644362,-6586.83,0.00022,7]
[372959178,1752822644372,-1249.8,0.00022,7]
[372959179,1752822644381,-1242.62,0.00022,7]
[372959180,1752822644391,-696.38814388,0.00022038,6]
[372959181,1752822644401,-6212.05815728,0.00022095,2]
[372959182,1752822644410,-150.0,0.000221,2]
[372959183,1752822644420,-978.12,0.00022188,2]
[372959184,1752822644430,-610.95,0.00022188,2]
[372959185,1752822644440,-540.18,0.00022188,2]
[372959186,1752822644449,-460.0,0.00022188,2]
[372959187,1752822644459,-728.1,0.00022188,2]
[372959188,1752822644469,-476.57,0.00022189,2]
[372959189,1752822644478,-460.0,0.00022189,2]
[372959190,1752822644488,-1817.55,0.00022189,2]
[372959191,1752822644498,-942.03,0.00022189,2]
[372959192,1752822644508,-6212.05815728,0.00022305,2]
[372959193,1752822644518,-696.38814388,0.00022314,7]
[372959194,1752822644528,-978.12,0.00022462,2]
[372959195,1752822644538,-610.95,0.00022462,2]
[372959196,1752822644549,-460.0,0.00022462,2]
[372959197,1752822644558,-728.1,0.00022462,2]
[372959198,1752822644567,-476.57,0.00022463,2]
[372959199,1752822644576,-243.7870701,0.00022463,2]
[372959200,1752822644585,-1817.55,0.00022463,2]
[372959201,1752822644597,-942.03,0.00022463,2]
[372959202,1752822644606,-207.4,0.00022488,2]
[372959203,1752822644616,-151.0,0.00022488,2]
[372959204,1752822644626,-151.0,0.00022488,2]
[372959205,1752822644635,-151.0,0.00022488,2]
[372959206,1752822644645,-151.0,0.00022488,2]
[372959207,1752822644654,-151.0,0.00022488,2]
[372959208,1752822644664,-151.0,0.00022488,2]
[372959209,1752822644673,-151.0,0.00022488,2]
[372959210,1752822644682,-151.0,0.00022488,2]
[372959211,1752822644692,-151.0,0.00022488,2]
[372959212,1752822644701,-151.0,0.00022488,2]
[372959213,1752822644710,-151.0,0.00022488,2]
[372959214,1752822644720,-151.0,0.00022488,2]
[372959215,1752822644729,-151.0,0.00022488,2]
[372959216,1752822644738,-151.0,0.00022488,2]
[372959217,1752822644747,-151.0,0.00022488,2]
[372959218,1752822644757,-151.0,0.00022488,2]
[372959219,1752822644766,-151.0,0.00022488,2]
[372959220,1752822644775,-151.0,0.00022488,2]
[372959221,1752822644784,-151.0,0.00022488,2]
[372959222,1752822644794,-151.0,0.00022488,2]
[372959223,1752822644803,-6212.05815728,0.00022534,2]
[372959224,1752822644813,-696.38814388,0.0002259,7]
[372959225,1752822644822,-214.4881157,0.0002259,7]
[372959226,1752822644831,-476.25663856,0.0002259,7]
[372959227,1752822644844,-12500.0,0.00022637,7]
[372959228,1752822644853,-978.12,0.00022736,2]
[372959229,1752822644862,-610.95,0.00022736,2]
[372959230,1752822644872,-460.0,0.00022736,2]
[372959231,1752822644881,-728.1,0.00022736,2]
[372959232,1752822644890,-476.57,0.00022737,2]
[372959233,1752822644900,-1817.55,0.00022737,2]
[372959234,1752822644909,-942.03,0.00022737,2]
[372959235,1752822644918,-6212.05815728,0.00022837,2]
[372959236,1752822644927,-696.38814388,0.00022866,8]
[372959237,1752822644936,-316.67051047,0.0002287,2]
[372959238,1752822644948,-796.39,0.00023,2]
[372959239,1752822644959,-978.21694218,0.0002301,2]
[372959240,1752822644970,-611.10167987,0.0002301,2]
[372959241,1752822644979,-346.61,0.0002301,2]
[372959242,1752822644989,-728.11,0.0002301,2]
[372959243,1752822644998,-476.79,0.00023011,2]
[372959244,1752822645007,-1817.65712672,0.00023011,2]
[372959245,1752822645016,-942.1421548,0.00023011,2]
[372959246,1752822645025,-761.8224317,0.00023047,2]
[372959247,1752822645035,-696.38814388,0.00023141,8]
[372959248,1752822645045,-6212.05815728,0.00023147,2]
[372959249,1752822645054,-404.29,0.00023204,2]
[372959250,1752822645064,-407.0,0.00023256,2]
[372959251,1752822645073,-6586.83,0.000233,7]
[372959252,1752822645083,-6212.05815728,0.00023315,2]
[372959253,1752822645093,-1249.8,0.000234,7]
[372959254,1752822645103,-696.38814388,0.00023417,9]
[372959255,1752822645112,-249.539,0.00023558,2]
[372959256,1752822645121,-248.989,0.00023558,2]
[372959257,1752822645131,-259.894,0.00023558,2]
[372959258,1752822645140,-218.103,0.00023558,2]
[372959259,1752822645150,-647.0,0.00023558,2]
[372959260,1752822645160,-2156.0,0.00023558,2]
[372959261,1752822645170,-968.0,0.00023558,2]
[372959262,1752822645180,-6212.05815728,0.00023563,2]
[372959263,1752822645190,-1242.62,0.000236,7]
[372959264,1752822645200,-696.38814388,0.00023693,9]
[372959265,1752822645213,-6212.05815728,0.00023839,2]
[372959266,1752822645224,-215.0738,0.00023857,2]
[372959267,1752822645234,-1371.30963216,0.000239,2]
[372959268,1752822645244,-696.38814388,0.00023969,10]
[372959269,1752822645256,-839.30593155,0.00024,7]
[372959270,1752822645265,-500.0,0.0002406,2]
[372959271,1752822645275,-1513.33043157,0.00024105,2]
[372959272,1752822645285,-316.67051047,0.00024123,2]
[372959273,1752822645296,-6212.05815728,0.00024187,2]
[372959274,1752822645308,-1513.33043157,0.00024205,2]
[372959275,1752822645317,-761.8224317,0.0002421,2]
[372959276,1752822645327,-696.38814388,0.00024245,10]
[372959277,1752822645337,-1513.33043157,0.00024305,2]
[372959278,1752822645348,-1513.33043157,0.00024405,2]
[372959279,1752822645358,-696.38814388,0.00024521,11]
[372959280,1752822645368,-6212.05815728,0.00024522,2]
[372959281,1752822645378,-1513.33043157,0.00024605,2]
[372959282,1752822645387,-179.0,0.00024658,14]
[372959283,1752822645397,-1513.33043157,0.00024705,2]
[372959284,1752822645407,-6212.05815728,0.00024778,2]
[372959285,1752822645418,-696.38814388,0.00024797,11]
[372959286,1752822645427,-214.4881157,0.000248,3]
[372959287,1752822645436,-12610.43989422,0.000248,3]
[372959288,1752822645446,-839.30593155,0.000248,3]
[372959289,1752822645455,-476.25663856,0.000248,3]
[372959290,1752822645465,-525.75194068,0.000248,3]
[372959291,1752822645475,-1513.33043157,0.00024805,2]
[372959292,1752822645484,-6586.83,0.000249,7]
[372959293,1752822645602,-248729.2579868,0.000249,2]
[372959294,1752822645620,-641.00857584,0.000249,2]
[372959295,1752822645632,-16002.85132691,0.000249,2]
[372959296,1752822645644,-46329.0380702,0.000249,2]
[372959297,1752822645657,-7577.93292191,0.000249,2]
[372959298,1752822645670,-3877.64549092,0.000249,2]
[372959299,1752822645682,-1962.24305168,0.000249,2]
[372959300,1752822645695,-1799.54588641,0.000249,2]
[372959301,1752822645707,-2127.53892177,0.000249,2]
[372959302,1752822645719,-1829.3,0.000249,2]
[372959303,1752822645731,-1927.20946137,0.000249,2]
[372959304,1752822645752,-505.93,0.00016708,2]
[372959305,1752822645762,-25175.5968,0.000249,2]
[372959352,1752822646577,-1497.27,0.00024595,10]
[372959355,1752822646588,-4015.76271028,0.000249,2]
[372959357,1752822646602,-691.80252404,0.000249,2]
[372959359,1752822646613,-258.0030354,0.000249,2]
[372959361,1752822646625,-368.65206835,0.000249,2]
[372959366,1752822646664,-34916.02661811,0.000249,2]
[372959368,1752822646675,-49023.418,0.000249,2]
[372959376,1752822646739,-92037.615865,0.000249,2]
[372959397,1752822646958,-1513.33043157,0.00024505,2]
[372959399,1752822646967,-5116.20196217,0.000249,2]
[372959426,1752822655163,150.0,0.00015903,2]
[372959427,1752822698895,278.937129,0.00013699,2]
[372959429,1752822722846,150.0,0.00015611,2]
[372959431,1752822782452,162.8,0.00027397,120]
[372959432,1752822790286,150.0,0.00015522,2]
[372959437,1752823555093,-460.0,0.00016607,2]
[372959438,1752823555116,-460.0,0.00016607,2]
[372959439,1752823555140,-300.0,0.00016607,2]
[372959440,1752823555162,-287.55840396,0.00016607,2]
[372959442,1752823637139,-231.86930555,0.00016132,2]
[372959443,1752823637165,-250.40179828,0.00016132,2]
[372959444,1752823637187,-459.53699974,0.00016508,2]
[372959445,1752823637209,-735.73443016,0.00016606,2]
[372959448,1752823685226,279.637684,0.00013699,2]
[372959461,1752823745102,150.0,0.00015493,2]
[372959506,1752823832598,-209.89,0.000166,3]
[372959507,1752823832610,-629.71,0.000166,3]
[372959508,1752823832620,-464.26556984,0.00016606,2]
[372959509,1752823832629,-289.0,0.00016606,2]
[372959510,1752823832639,-300.0,0.00016606,2]
[372959512,1752823832649,-200.0,0.00016606,2]
[372959514,1752823832658,-172.44159604,0.00016607,2]
[372959517,1752823832680,-419.83737865,0.00016607,2]
[372959519,1752823832690,-460.75886244,0.00016607,2]
[372959520,1752823832700,-460.0,0.00016607,2]
[372959521,1752823832711,-460.0,0.00016607,2]
[372959522,1752823832721,-289.3656507,0.00016607,2]
[372959523,1752823832731,-460.0,0.00016607,2]
[372959524,1752823832741,-342.68058391,0.00016607,2]
[372959525,1752823832752,-227.38839095,0.00016607,2]
[372959526,1752823832762,-460.0,0.00016607,2]
[372959527,1752823832772,-460.7034176,0.00016607,2]
[372959528,1752823832782,-460.0,0.00016607,2]
[372959530,1752823832792,-460.0,0.00016607,2]
[372959531,1752823832803,-460.0,0.00016607,2]
[372959532,1752823832813,-460.0,0.00016607,2]
[372959533,1752823832823,-460.0,0.00016607,2]
[372959534,1752823832835,-460.0,0.00016607,2]
[372959535,1752823832845,-460.0,0.00016607,2]
[372959536,1752823832855,-460.0,0.00016607,2]
[372959537,1752823832866,-460.0,0.00016607,2]
[372959538,1752823832876,-460.0,0.00016607,2]
[372959539,1752823832886,-460.28970062,0.00016607,2]
[372959540,1752823832896,-460.0,0.00016607,2]
[372959541,1752823832906,-486.945714,0.00016607,2]
[372959542,1752823832916,-460.0,0.00016607,2]
[372959543,1752823832926,-460.0,0.00016607,2]
[372959544,1752823832935,-460.0,0.00016607,2]
[372959545,1752823832945,-1000.0,0.00016607,2]
[372959546,1752823832955,-460.0,0.00016607,2]
[372959547,1752823832965,-460.0,0.00016607,2]
[372959548,1752823832975,-460.0,0.00016607,2]
[372959549,1752823832985,-460.0,0.00016607,2]
[372959550,1752823832995,-460.0,0.00016607,2]
[372959551,1752823833005,-460.0,0.00016607,2]
[372959553,1752823833015,-460.0,0.00016607,2]
[372959554,1752823833025,-460.0,0.00016607,2]
[372959556,1752823833034,-460.0,0.00016607,2]
[372959558,1752823833044,-460.0,0.00016607,2]
[372959560,1752823833055,-460.0,0.00016607,2]
[372959562,1752823833064,-1420.83,0.00016607,2]
[372959565,1752823833075,-460.0,0.00016607,2]
[372959567,1752823833086,-460.0,0.00016607,2]
[372959569,1752823833095,-460.0,0.00016607,2]
[372959571,1752823833106,-3946.43,0.00016607,2]
[372959573,1752823833116,-299.7709777,0.00016607,2]
[372959575,1752823833125,-460.0,0.00016607,2]
[372959577,1752823833136,-460.0,0.00016607,2]
[372959579,1752823833146,-460.0,0.00016608,2]
[372959581,1752823833156,-460.0,0.00016608,2]
[372959583,1752823833167,-460.0,0.00016608,2]
[372959585,1752823833177,-460.0,0.00016608,2]
[372959587,1752823833187,-460.0,0.00016608,2]
[372959588,1752823833197,-460.0,0.00016608,2]
[372959590,1752823833207,-460.0,0.00016608,2]
[372959592,1752823833217,-460.0,0.00016608,2]
[372959594,1752823833227,-460.0,0.00016608,2]
[372959596,1752823833236,-460.0,0.00016608,2]
[372959598,1752823833246,-460.0,0.00016608,2]
[372959600,1752823833256,-462.02482458,0.00016608,2]
[372959602,1752823833266,-460.97292052,0.00016608,2]
[372959604,1752823833276,-460.0,0.00016608,2]
[372959606,1752823833290,-469.66209732,0.00016608,2]
[372959608,1752823833300,-460.0,0.00016608,2]
[372959610,1752823833310,-461.540603,0.00016608,2]
[372959612,1752823833320,-460.0,0.00016608,2]
[372959614,1752823833332,-460.0,0.00016608,2]
[372959616,1752823833341,-463.41417922,0.00016608,2]
[372959618,1752823833351,-460.0,0.00016608,2]
[372959620,1752823833361,-460.0,0.00016608,2]
[372959622,1752823833371,-460.0,0.00016608,2]
[372959624,1752823833380,-500.0,0.00016608,2]
[372959625,1752823833390,-460.0,0.00016608,2]
[372959626,1752823833400,-500.0,0.00016608,2]
[372959627,1752823833410,-460.0,0.00016608,2]
[372959628,1752823833420,-460.0,0.00016608,2]
[372959629,1752823833430,-460.0,0.00016608,2]
[372959630,1752823833440,-460.0,0.00016608,2]
[372959631,1752823833450,-460.0,0.00016608,2]
[372959632,1752823833460,-460.0,0.00016608,2]
[372959633,1752823833470,-460.0,0.00016608,2]
[372959634,1752823833481,-460.0,0.00016608,2]
[372959635,1752823833491,-460.0,0.00016608,2]
[372959636,1752823833501,-460.0,0.00016608,2]
[372959637,1752823833511,-460.0,0.00016608,2]
[372959638,1752823833520,-460.0,0.00016608,2]
[372959639,1752823833530,-460.0,0.00016608,2]
[372959640,1752823833543,-460.0,0.00016608,2]
[372959641,1752823833554,-460.0,0.00016608,2]
[372959642,1752823833564,-460.0,0.00016608,2]
[372959643,1752823833574,-460.0,0.00016608,2]
[372959644,1752823833586,-464.75904752,0.00016608,2]
[372959645,1752823833596,-460.0,0.00016608,2]
[372959646,1752823833605,-460.0,0.00016608,2]
[372959647,1752823833616,-1726.21,0.00016608,2]
[372959648,1752823833627,-460.0,0.00016608,2]
[372959649,1752823833637,-460.0,0.00016608,2]
[372959650,1752823833646,-460.0,0.00016608,2]
[372959651,1752823833656,-986.53,0.00016608,2]
[372959652,1752823833666,-460.0,0.00016608,2]
[372959653,1752823833677,-460.64659903,0.00016608,2]
[372959654,1752823833687,-460.0,0.00016608,2]
[372959655,1752823833697,-580.54802677,0.00016608,2]
[372959656,1752823833707,-387.09890364,0.00016608,2]
[372959657,1752823833717,-460.0,0.00016608,2]
[372959658,1752823833727,-460.0,0.00016608,2]
[372959659,1752823833738,-460.0,0.00016608,2]
[372959660,1752823833750,-460.0,0.00016608,2]
[372959661,1752823833760,-460.0,0.00016608,2]
[372959662,1752823833770,-460.0,0.00016608,2]
[372959663,1752823833780,-460.0,0.00016608,2]
[372959664,1752823833790,-460.0,0.00016608,2]
[372959665,1752823833800,-460.0,0.00016608,2]
[372959666,1752823833811,-460.0,0.00016608,2]
[372959667,1752823833822,-499.14,0.00016608,2]
[372959668,1752823833837,-460.0,0.00016608,2]
[372959669,1752823833847,-1371.94,0.00016608,2]
[372959670,1752823833858,-460.0,0.00016608,2]
[372959671,1752823833868,-460.0,0.00016608,2]
[372959672,1752823833878,-460.0,0.00016608,2]
[372959673,1752823833888,-460.0,0.00016608,2]
[372959674,1752823833898,-460.0,0.00016608,2]
[372959675,1752823833909,-460.0,0.00016608,2]